[Event "Championnat du monde jeunes U10"]
[Date "2024.11.17"]
[White "Qian, Qipeng"]
[Black "Todmunkh, Turbat"]
[WhiteElo "1641"]
[BlackElo "1773"]
[Round "3.46"]
[Result "1/2-1/2"]
[TimeControl "5400+30"]

1. d4 {[%clk 1:30:58]} 1... Nf6 {[%clk 1:30:52]} 2. c4 {[%clk 1:30:17]} 2... g6
{[%clk 1:30:02]} 3. Nc3 {[%clk 1:29:28]} 3... Bg7 {[%clk 1:29:44]} 4. e4 {[%clk
1:29:04]} 4... d6 {[%clk 1:29:53]} 5. Be2 {[%clk 1:27:33]} 5... O-O {[%clk
1:29:02]} 6. Bg5 {[%clk 1:27:17]} 6... c6 {[%clk 1:22:30]} 7. Qd2 {[%clk
1:26:02]} 7... Nbd7 8. Rd1 {[%clk 1:26:25]} 8... e5 {[%clk 1:05:12]} 9. d5
{[%clk 1:25:32]} 9... Qa5 {[%clk 0:52:57]} 10. Nf3 {[%clk 1:18:55]} 10... cxd5
{[%clk 0:44:34]} 11. cxd5 {[%clk 1:19:02]} 11... Nc5 12. Bxf6 {[%clk 1:17:29]}
12... Bxf6 {[%clk 0:41:36]} 13. O-O {[%clk 1:17:53]} 13... Bg7 {[%clk 0:41:50]}
14. Nb5 {[%clk 1:14:17]} 14... Qd8 {[%clk 0:42:01]} 15. Qc2 {[%clk 1:01:51]}
15... a6 16. Nc3 {[%clk 0:59:20]} 16... Bg4 {[%clk 0:32:35]} 17. h3 {[%clk
0:59:20]} 17... Bxf3 {[%clk 0:33:01]} 18. Bxf3 {[%clk 0:59:43]} 18... f5 {[%clk
0:33:21]} 19. b4 {[%clk 0:56:57]} 19... Nd7 {[%clk 0:32:45]} 20. Be2 {[%clk
0:54:26]} 20... Rc8 {[%clk 0:32:53]} 21. Qd2 {[%clk 0:42:49]} 21... Nf6 {[%clk
0:26:31]} 22. Bd3 {[%clk 0:38:35]} 22... f4 {[%clk 0:16:57]} 23. Be2 {[%clk
0:38:27]} 23... h5 {[%clk 0:16:05]} 24. f3 {[%clk 0:37:42]} 24... Qb6+ {[%clk
0:16:13]} 25. Kh2 {[%clk 0:37:51]} 25... Qxb4 {[%clk 0:15:41]} 26. Nb1 {[%clk
0:38:13]} 26... Qxd2 {[%clk 0:15:19]} 27. Rxd2 {[%clk 0:38:37]} 27... Nd7 {[%clk
0:15:29]} 28. Rb2 Nc5 {[%clk 0:15:48]} 29. Rc1 {[%clk 0:37:18]} 29... Bf6 {[%clk
0:14:51]} 30. Nd2 {[%clk 0:35:01]} 30... b5 {[%clk 0:13:43]} 31. Rbc2 {[%clk
0:32:50]} 31... Be7 {[%clk 0:12:20]} 32. Nb3 {[%clk 0:32:38]} 32... Kf7 {[%clk
0:08:59]} 33. Nxc5 {[%clk 0:31:30]} 33... dxc5 {[%clk 0:05:39]} 34. a4 {[%clk
0:31:19]} 34... c4 {[%clk 0:05:59]} 35. axb5 {[%clk 0:28:10]} 35... axb5 {[%clk
0:06:24]} 36. Rb1 {[%clk 0:26:10]} 36... Rb8 {[%clk 0:06:26]} 37. d6 {[%clk
0:26:30]} 37... Bxd6 {[%clk 0:05:36]} 38. Rxb5 {[%clk 0:26:54]} 38... Rxb5
{[%clk 0:05:51]} 39. Bxc4+ {[%clk 0:27:20]} 39... Ke7 {[%clk 0:06:15]} 40. Bxb5
{[%clk 0:27:47]} 40... Rb8 {[%clk 0:06:36]} 41. Be2 {[%clk 0:27:27]} 41... Rb1
{[%clk 0:06:42]} 42. g3 {[%clk 0:27:26]} 42... g5 {[%clk 0:04:51]} 43. g4 {[%clk
0:26:03]} 43... h4 {[%clk 0:04:33]} 44. Kg2 {[%clk 0:26:28]} 44... Bb8 {[%clk
0:03:11]} 45. Bf1 {[%clk 0:26:52]} 45... Kd6 {[%clk 0:03:11]} 46. Bd3 {[%clk
0:26:52]} 46... Ra1 {[%clk 0:03:11]} 47. Bf1 {[%clk 0:26:52]} 47... Ba7 {[%clk
0:03:11]} 48. Rd2+ {[%clk 0:26:52]} 48... Bd4 {[%clk 0:03:11]} 49. Rc2 {[%clk
0:26:52]} 49... Bc5 {[%clk 0:03:11]} 50. Rd2+ {[%clk 0:26:52]} 50... Kc6 {[%clk
0:03:11]} 51. Rc2 {[%clk 0:26:52]} 51... Kb6 {[%clk 0:03:11]} 52. Rb2+ {[%clk
0:26:52]} 52... Kc7 {[%clk 0:03:11]} 53. Rc2 {[%clk 0:26:52]} 53... Kc6 {[%clk
0:03:11]} 54. Rb2 {[%clk 0:26:52]} 54... Rc1 {[%clk 0:03:11]} 55. Bb5+ {[%clk
0:26:52]} 55... Kd6 {[%clk 0:03:11]} 56. Bf1 {[%clk 0:26:52]} 56... Bd4 {[%clk
0:03:11]} 57. Rd2 {[%clk 0:26:52]} 57... Kc5 {[%clk 0:03:11]} 58. Be2 {[%clk
0:16:54]} 58... Re1 {[%clk 0:02:38]} 59. Bf1 {[%clk 0:16:34]} 59... Kb4 {[%clk
0:02:16]} 60. Rd3 {[%clk 0:16:16]} 60... Ra1 {[%clk 0:02:34]} 61. Kh1 {[%clk
0:16:40]} 61... Ra2 {[%clk 0:02:15]} 62. Bg2 {[%clk 0:16:58]} 62... Rf2 {[%clk
0:01:57]} 63. Rd1 {[%clk 0:17:22]} 63... Kc3 {[%clk 0:02:10]} 64. Rc1+ {[%clk
0:17:34]} 64... Kd2 {[%clk 0:01:53]} 65. Rf1 {[%clk 0:17:16]} 65... Re2 {[%clk
0:02:13]} 66. Kh2 {[%clk 0:17:29]} 66... Ke3 {[%clk 0:02:03]} 67. Kh1 {[%clk
0:17:05]} 67... Bc3 {[%clk 0:01:51]} 68. Kg1 {[%clk 0:16:38]} 68... Bb4 {[%clk
0:00:59]} 69. Rb1 {[%clk 0:15:40]} 69... Bc5 {[%clk 0:00:46]} 70. Rc1 {[%clk
0:15:07]} 70... Bd4 {[%clk 0:00:48]} 71. Kh2 {[%clk 0:14:04]} 71... Kd2 {[%clk
0:00:59]} 72. Rf1 {[%clk 0:13:46]} 72... Re1 {[%clk 0:00:36]} 73. Rxe1 {[%clk
0:13:10]} 73... Kxe1 {[%clk 0:01:01]} 74. Bh1 {[%clk 0:13:36]} 74... Bf2 {[%clk
0:00:34]} 75. Bg2 {[%clk 0:13:57]} 75... Bg3+ {[%clk 0:00:49]} 76. Kg1 {[%clk
0:14:20]} 76... Ke2 {[%clk 0:01:04]} 77. Bh1 {[%clk 0:14:24]} 77... Bf2+ {[%clk
0:00:38]} 78. Kh2 Bg3+ 79. Kg1 {[%clk 0:15:14]} 79... Ke1 {[%clk 0:00:40]} 80.
Bg2 {[%clk 0:15:21]} 80... Ke2 {[%clk 0:00:55]} 81. Bh1 {[%clk 0:15:44]} 81...
Ke1 {[%clk 0:01:19]} 82. Bg2 {[%clk 0:16:09]} 1/2-1/2

[Variant "Standard"]
[Site "Europe Echecs"]

[Event "Championnat du monde jeunes U10"]
[Date "2024.11.17"]
[White "Prokhorov, Makar"]
[Black "Grimm, Jakob"]
[WhiteElo "1771"]
[BlackElo "1646"]
[Round "3.47"]
[Result "0-1"]
[TimeControl "5400+30"]

1. e4 {[%clk 1:30:59]} 1... e5 {[%clk 1:30:58]} 2. Nf3 {[%clk 1:31:23]} 2... Nc6
{[%clk 1:31:24]} 3. Bb5 {[%clk 1:31:46]} 3... a6 {[%clk 1:31:50]} 4. Ba4 {[%clk
1:32:04]} 4... Nf6 {[%clk 1:32:18]} 5. O-O {[%clk 1:32:08]} 5... Be7 {[%clk
1:32:42]} 6. Re1 {[%clk 1:31:48]} 6... b5 {[%clk 1:32:58]} 7. Bb3 {[%clk
1:32:09]} 7... O-O {[%clk 1:33:17]} 8. c3 {[%clk 1:31:46]} 8... Re8 {[%clk
1:29:20]} 9. d4 {[%clk 1:30:15]} 9... Bf8 {[%clk 1:26:23]} 10. Nbd2 {[%clk
1:29:30]} 10... d6 {[%clk 1:22:16]} 11. h3 {[%clk 1:29:24]} 11... Bb7 {[%clk
1:20:59]} 12. a3 {[%clk 1:28:29]} 12... h6 {[%clk 1:17:48]} 13. Bc2 {[%clk
1:27:57]} 13... Qd7 {[%clk 1:12:21]} 14. Nf1 {[%clk 1:26:14]} 14... Rad8 {[%clk
1:12:05]} 15. Ng3 {[%clk 1:25:01]} 15... d5 {[%clk 1:09:45]} 16. exd5 {[%clk
1:22:58]} 16... Qxd5 {[%clk 1:09:44]} 17. dxe5 {[%clk 1:18:30]} 17... Nxe5
{[%clk 1:09:22]} 18. Nh4 {[%clk 1:07:16]} 18... Qc6 {[%clk 1:05:13]} 19. Bd2
{[%clk 0:59:07]} 19... Nc4 {[%clk 1:01:41]} 20. Rxe8 {[%clk 0:49:35]} 20... Nxe8
{[%clk 1:00:49]} 21. Nf1 {[%clk 0:46:15]} 21... Be7 {[%clk 0:41:12]} 22. Nf3
{[%clk 0:44:37]} 22... Bg5 {[%clk 0:41:16]} 23. Qe2 {[%clk 0:22:40]} 23... Nxd2
{[%clk 0:37:42]} 24. Ne1 {[%clk 0:20:00]} 24... Nxf1 {[%clk 0:34:47]} 25. Qxf1
{[%clk 0:20:00]} 25... Rd2 {[%clk 0:27:18]} 26. Rd1 {[%clk 0:19:50]} 26... Rxd1
27. Bxd1 Qg6 {[%clk 0:24:17]} 28. Bc2 {[%clk 0:20:03]} 28... Be4 {[%clk
0:24:32]} 29. Nd3 {[%clk 0:20:00]} 29... Bxd3 {[%clk 0:18:50]} 30. Bxd3 {[%clk
0:19:30]} 30... Qe6 {[%clk 0:18:05]} 31. a4 {[%clk 0:19:05]} 31... c6 {[%clk
0:16:51]} 32. axb5 {[%clk 0:16:43]} 32... axb5 {[%clk 0:16:48]} 33. c4 {[%clk
0:16:40]} 33... bxc4 {[%clk 0:14:38]} 34. Bxc4 {[%clk 0:16:43]} 34... Qe5 {[%clk
0:13:57]} 35. b4 {[%clk 0:13:55]} 35... Nd6 {[%clk 0:13:21]} 36. Bd3 {[%clk
0:13:58]} 36... Bd2 {[%clk 0:11:34]} 37. g3 {[%clk 0:13:16]} 37... Qe1 {[%clk
0:11:46]} 38. b5 {[%clk 0:13:32]} 38... Qxf1+ {[%clk 0:12:07]} 39. Kxf1 {[%clk
0:13:53]} 39... cxb5 {[%clk 0:12:31]} 40. Ke2 {[%clk 0:14:11]} 40... Bc3 {[%clk
0:12:52]} 41. Kd1 {[%clk 0:14:35]} 41... b4 {[%clk 0:13:09]} 42. Kc2 {[%clk
0:14:59]} 42... Kf8 {[%clk 0:13:30]} 43. Kb3 {[%clk 0:15:08]} 43... Ke7 {[%clk
0:13:49]} 44. Kc2 {[%clk 0:12:53]} 44... Nb7 {[%clk 0:13:53]} 45. Bc4 {[%clk
0:12:49]} 45... Be1 {[%clk 0:13:32]} 46. Bd5 {[%clk 0:12:50]} 46... Nc5 {[%clk
0:13:50]} 47. g4 {[%clk 0:11:52]} 47... Bxf2 {[%clk 0:14:12]} 48. Kd2 {[%clk
0:12:17]} 48... f6 {[%clk 0:13:51]} 49. Ke2 {[%clk 0:12:21]} 49... Bd4 {[%clk
0:14:12]} 50. Kd2 {[%clk 0:12:35]} 50... b3 {[%clk 0:14:28]} 51. Kc1 {[%clk
0:12:11]} 51... b2+ {[%clk 0:14:36]} 52. Kc2 {[%clk 0:12:33]} 52... Kd6 {[%clk
0:14:34]} 53. Bc4 {[%clk 0:12:57]} 53... Ke5 {[%clk 0:14:53]} 54. Bf1 {[%clk
0:13:07]} 54... Na4 {[%clk 0:14:15]} 55. Kb3 {[%clk 0:11:49]} 55... b1=Q+ {[%clk
0:14:37]} 56. Kxa4 {[%clk 0:11:53]} 56... Bc5 {[%clk 0:14:59]} 57. h4 {[%clk
0:12:12]} 57... Qb4# {[%clk 0:15:18]} 0-1

[Variant "Standard"]
[Site "Europe Echecs"]

[Event "Championnat du monde jeunes U10"]
[Date "2024.11.17"]
[White "Montaigu Dupont, Arthur"]
[Black "Vedrickas, Vytis"]
[WhiteElo "1767"]
[BlackElo "1642"]
[Round "3.48"]
[Result "1-0"]
[TimeControl "5400+30"]

1. e4 {[%clk 1:30:58]} 1... c5 {[%clk 1:30:41]} 2. Nf3 {[%clk 1:31:23]} 2... g6
{[%clk 1:31:04]} 3. c3 {[%clk 1:31:45]} 3... Bg7 {[%clk 1:31:24]} 4. d4 {[%clk
1:32:02]} 4... cxd4 {[%clk 1:31:47]} 5. cxd4 {[%clk 1:32:19]} 5... d5 {[%clk
1:32:09]} 6. e5 {[%clk 1:32:44]} 6... a6 {[%clk 1:32:35]} 7. Nc3 {[%clk
1:11:56]} 7... Nc6 {[%clk 1:31:58]} 8. h3 {[%clk 0:49:31]} 8... f6 {[%clk
1:31:59]} 9. Bf4 {[%clk 0:42:56]} 9... fxe5 {[%clk 1:25:38]} 10. Nxe5 {[%clk
0:25:03]} 10... Nxe5 {[%clk 1:24:02]} 11. Bxe5 {[%clk 0:24:59]} 11... Bxe5
{[%clk 1:24:15]} 12. dxe5 {[%clk 0:25:19]} 12... d4 {[%clk 1:24:01]} 13. Qa4+
{[%clk 0:24:09]} 13... b5 {[%clk 1:23:16]} 14. Bxb5+ {[%clk 0:21:18]} 14... axb5
{[%clk 1:23:37]} 15. Qxa8 {[%clk 0:21:37]} 15... dxc3 {[%clk 1:23:54]} 16. Qc6+
{[%clk 0:20:06]} 16... Bd7 {[%clk 1:24:10]} 17. Qxc3 {[%clk 0:20:30]} 17... e6
{[%clk 1:24:27]} 18. O-O {[%clk 0:19:37]} 18... Ne7 {[%clk 1:24:20]} 19. b3
{[%clk 0:13:28]} 19... O-O {[%clk 1:20:38]} 20. a4 {[%clk 0:13:46]} 20... Nd5
{[%clk 1:19:06]} 21. Qd2 {[%clk 0:12:27]} 21... Qb6 {[%clk 1:17:30]} 22. a5
{[%clk 0:08:30]} 22... Qa7 {[%clk 1:17:42]} 23. Rfd1 {[%clk 0:02:13]} 23... Bc6
{[%clk 1:16:10]} 24. Qd4 {[%clk 0:01:50]} 24... Qf7 {[%clk 1:14:29]} 25. f3
{[%clk 0:00:53]} 25... Nf4 {[%clk 1:14:16]} 26. Qd2 {[%clk 0:00:39]} 26... Nxh3+
{[%clk 1:12:11]} 27. Kh2 {[%clk 0:00:37]} 27... Nf4 {[%clk 1:12:09]} 28. a6
{[%clk 0:00:39]} 28... Qf5 {[%clk 1:10:34]} 29. a7 {[%clk 0:00:34]} 29... Qh5+
{[%clk 1:09:37]} 30. Kg1 {[%clk 0:00:37]} 30... Nh3+ {[%clk 1:08:54]} 31. gxh3
{[%clk 0:00:34]} 31... Qxf3 {[%clk 1:09:13]} 32. Kh2 {[%clk 0:00:51]} 32... Qe4
{[%clk 1:06:52]} 33. Re1 {[%clk 0:00:59]} 33... Qh4 {[%clk 1:04:31]} 34. Rf1
{[%clk 0:00:46]} 34... Rd8 {[%clk 1:02:58]} 35. Qf2 {[%clk 0:00:36]} 35... Qe7
{[%clk 1:02:39]} 36. Ra2 {[%clk 0:00:38]} 36... Qd7 {[%clk 0:59:41]} 37. Qg3
{[%clk 0:00:32]} 37... Qd5 {[%clk 0:59:09]} 38. Qe3 {[%clk 0:00:48]} 38... Rd7
{[%clk 0:56:42]} 39. Qf4 {[%clk 0:00:43]} 39... Rd8 {[%clk 0:56:21]} 40. Raf2
{[%clk 0:00:36]} 40... Bb7 {[%clk 0:54:18]} 41. Qg3 {[%clk 0:00:34]} 41... Rc8
{[%clk 0:53:58]} 42. Qf4 {[%clk 0:00:33]} 42... Qc6 {[%clk 0:51:36]} 43. Rd1
{[%clk 0:00:35]} 43... Qe8 {[%clk 0:48:04]} 44. Qf6 {[%clk 0:00:36]} 44... Ba8
{[%clk 0:41:56]} 45. Rfd2 {[%clk 0:00:36]} 45... Bd5 {[%clk 0:41:53]} 46. Rf2
{[%clk 0:00:44]} 46... Ba8 {[%clk 0:41:11]} 47. Rd6 {[%clk 0:00:53]} 47... Bd5
{[%clk 0:41:27]} 48. Rxd5 {[%clk 0:01:11]} 48... exd5 {[%clk 0:41:44]} 49. e6
{[%clk 0:01:38]} 49... Qc6 {[%clk 0:38:42]} 50. Qf7+ {[%clk 0:01:20]} 50... Kh8
{[%clk 0:38:56]} 51. e7 {[%clk 0:01:20]} 51... Qd6+ {[%clk 0:38:57]} 52. Kg2
{[%clk 0:01:46]} 1-0

[Variant "Standard"]
[Site "Europe Echecs"]

[Event "Championnat du monde jeunes U10"]
[Date "2024.11.17"]
[White "Hochman, Gur"]
[Black "Fattori Dittmar, Luca"]
[WhiteElo "1626"]
[BlackElo "1766"]
[Round "3.1"]
[Result "1/2-1/2"]
[TimeControl "5400+30"]

1. e4 {[%clk 1:30:58]} 1... e6 {[%clk 1:30:54]} 2. d3 {[%clk 1:31:20]} 2... d5
{[%clk 1:31:11]} 3. Nd2 {[%clk 1:31:40]} 3... Nf6 {[%clk 1:31:08]} 4. Ngf3
{[%clk 1:31:58]} 4... Bc5 {[%clk 1:31:00]} 5. g3 {[%clk 1:31:01]} 5... dxe4
{[%clk 1:31:22]} 6. Nxe4 {[%clk 1:28:32]} 6... Nxe4 {[%clk 1:31:45]} 7. dxe4
{[%clk 1:28:56]} 7... Bxf2+ {[%clk 1:31:53]} 8. Kxf2 {[%clk 1:28:47]} 8... Qxd1
{[%clk 1:32:16]} 9. Bb5+ {[%clk 1:29:13]} 9... Qd7 {[%clk 1:32:27]} 10. Bxd7+
{[%clk 1:29:33]} 10... Bxd7 {[%clk 1:31:50]} 11. Bf4 {[%clk 1:23:05]} 11... Na6
{[%clk 1:24:17]} 12. Ne5 {[%clk 1:11:35]} 12... f6 {[%clk 1:15:33]} 13. Nxd7
{[%clk 1:11:11]} 13... Kxd7 {[%clk 1:15:36]} 14. Rhe1 {[%clk 0:57:53]} 14... e5
{[%clk 1:15:04]} 15. Rad1+ {[%clk 0:54:09]} 15... Ke6 {[%clk 1:11:27]} 16. Bc1
{[%clk 0:53:55]} 16... Rad8 {[%clk 1:10:40]} 17. a3 {[%clk 0:46:51]} 17... Rd6
{[%clk 1:08:07]} 18. Rxd6+ {[%clk 0:40:53]} 18... Kxd6 {[%clk 1:04:25]} 19. b4
{[%clk 0:38:53]} 19... Rd8 {[%clk 1:02:14]} 20. Be3 {[%clk 0:23:05]} 20... Ke6
{[%clk 0:59:54]} 21. b5 {[%clk 0:22:56]} 21... Nb8 {[%clk 0:59:42]} 22. Bxa7
{[%clk 0:21:47]} 22... Rd2+ {[%clk 0:59:59]} 23. Re2 {[%clk 0:21:50]} 23...
Rxe2+ {[%clk 1:00:23]} 24. Kxe2 {[%clk 0:22:10]} 24... Nd7 {[%clk 1:00:51]} 25.
Bf2 {[%clk 0:21:10]} 25... Kd6 {[%clk 1:01:01]} 26. Kd3 {[%clk 0:18:17]} 26...
Nc5+ {[%clk 0:58:58]} 27. Bxc5+ {[%clk 0:18:22]} 27... Kxc5 {[%clk 0:59:24]} 28.
c4 {[%clk 0:18:37]} 28... h5 {[%clk 0:57:09]} 29. h3 {[%clk 0:15:34]} 29... g6
{[%clk 0:56:39]} 30. g4 {[%clk 0:14:31]} 30... h4 {[%clk 0:56:25]} 31. Kc3
{[%clk 0:12:47]} 31... b6 {[%clk 0:55:08]} 32. Kd3 {[%clk 0:12:56]} 32... Kd6
{[%clk 0:53:53]} 33. Ke3 {[%clk 0:12:43]} 33... Ke6 {[%clk 0:52:44]} 34. Kd3
{[%clk 0:11:43]} 34... Kd6 {[%clk 0:45:27]} 35. Ke3 {[%clk 0:11:51]} 35... Kc5
{[%clk 0:45:46]} 36. Kd3 {[%clk 0:11:54]} 36... g5 {[%clk 0:46:08]} 37. Kc3
{[%clk 0:12:02]} 1/2-1/2

[Variant "Standard"]
[Site "Europe Echecs"]

[Event "Championnat du monde jeunes U10"]
[Date "2024.11.17"]
[White "Katta, Sriansh"]
[Black "Kalinichenko, German Yu"]
[WhiteElo "1766"]
[BlackElo "1621"]
[Round "3.2"]
[Result "1-0"]
[TimeControl "5400+30"]

1. e4 {[%clk 1:30:59]} 1... e5 {[%clk 1:30:46]} 2. Nf3 {[%clk 1:31:27]} 2... Nc6
{[%clk 1:31:06]} 3. d4 {[%clk 1:31:52]} 3... exd4 {[%clk 1:31:30]} 4. Nxd4
{[%clk 1:32:20]} 4... Nf6 {[%clk 1:31:51]} 5. Nc3 {[%clk 1:32:45]} 5... Bb4
{[%clk 1:32:16]} 6. Nxc6 {[%clk 1:33:14]} 6... bxc6 {[%clk 1:32:26]} 7. Bd3
{[%clk 1:33:39]} 7... d5 {[%clk 1:32:49]} 8. exd5 {[%clk 1:34:04]} 8... O-O
{[%clk 1:33:10]} 9. O-O {[%clk 1:34:31]} 9... cxd5 {[%clk 1:33:35]} 10. Bg5
{[%clk 1:34:57]} 10... c6 {[%clk 1:33:22]} 11. Qf3 {[%clk 1:35:22]} 11... h6
{[%clk 1:33:30]} 12. Bxf6 {[%clk 1:35:45]} 12... Qxf6 {[%clk 1:33:56]} 13. Qxf6
{[%clk 1:36:14]} 13... gxf6 {[%clk 1:33:57]} 14. Ne2 {[%clk 1:36:35]} 14... Bd6
{[%clk 1:34:01]} 15. Ng3 {[%clk 1:36:54]} 15... Be5 {[%clk 1:32:26]} 16. c3
{[%clk 1:36:47]} 16... Rb8 {[%clk 1:32:46]} 17. Rab1 {[%clk 1:37:01]} 17... Rb6
{[%clk 1:28:19]} 18. f4 {[%clk 1:32:33]} 18... Bd6 {[%clk 1:27:55]} 19. Nh5
{[%clk 1:31:50]} 19... Be7 {[%clk 1:25:19]} 20. Rfe1 {[%clk 1:31:28]} 20... Bd8
{[%clk 1:23:34]} 21. Re3 {[%clk 1:23:46]} 21... Ba6 {[%clk 1:23:00]} 22. Rg3+
{[%clk 1:19:47]} 22... Kh8 {[%clk 1:23:19]} 23. Bxa6 {[%clk 1:18:14]} 23... Rxa6
{[%clk 1:23:33]} 24. a3 {[%clk 1:18:22]} 24... d4 {[%clk 1:22:02]} 25. cxd4
{[%clk 1:12:54]} 25... Ra5 {[%clk 1:21:53]} 26. Rh3 {[%clk 1:12:36]} 26... Bb6
{[%clk 1:21:57]} 27. Rd1 {[%clk 1:12:49]} 27... Rd5 {[%clk 1:21:59]} 28. Kh1
{[%clk 1:10:42]} 28... Bxd4 {[%clk 1:20:13]} 29. Rhd3 {[%clk 1:08:54]} 29...
Rfd8 {[%clk 1:19:34]} 30. b3 {[%clk 1:04:52]} 30... Rxh5 {[%clk 1:19:15]} 31.
Rxd4 {[%clk 1:05:07]} 31... Rhd5 {[%clk 1:19:25]} 32. Rxd5 {[%clk 1:05:26]}
32... cxd5 {[%clk 1:19:42]} 33. Kg1 {[%clk 1:04:00]} 33... f5 {[%clk 1:19:50]}
34. Kf2 {[%clk 1:03:31]} 34... d4 {[%clk 1:20:10]} 35. Rd3 {[%clk 1:03:22]}
35... Kg7 {[%clk 1:20:34]} 36. Rg3+ {[%clk 1:01:14]} 36... Kf6 {[%clk 1:20:39]}
37. Ke2 {[%clk 1:01:25]} 37... Ke6 {[%clk 1:20:57]} 38. Rh3 {[%clk 0:51:41]}
38... Kd5 {[%clk 1:19:41]} 39. Rxh6 {[%clk 0:48:11]} 39... Rc8 {[%clk 1:19:50]}
40. Kd2 {[%clk 0:47:54]} 40... Rc3 {[%clk 1:19:49]} 41. Rh3 {[%clk 0:37:47]}
41... Rc7 {[%clk 1:17:17]} 42. Rd3 {[%clk 0:33:38]} 42... Ke4 {[%clk 1:16:49]}
43. Rf3 {[%clk 0:26:44]} 43... f6 {[%clk 1:16:29]} 44. b4 {[%clk 0:24:09]} 44...
Rg7 {[%clk 1:14:48]} 45. Rg3 {[%clk 0:23:18]} 45... Rc7 {[%clk 1:14:45]} 46. Rf3
{[%clk 0:23:23]} 46... Kd5 {[%clk 1:15:08]} 47. Rd3 {[%clk 0:21:22]} 47... Rg7
{[%clk 1:14:50]} 48. g3 {[%clk 0:15:33]} 48... Kc4 {[%clk 1:14:11]} 49. Rf3
{[%clk 0:15:44]} 49... a6 {[%clk 1:13:08]} 50. Rd3 {[%clk 0:16:06]} 50... Kd5
{[%clk 1:13:29]} 51. Rf3 {[%clk 0:16:28]} 51... Ke4 {[%clk 1:13:13]} 52. Rd3
{[%clk 0:16:48]} 52... Rb7 {[%clk 1:13:09]} 53. Kc2 {[%clk 0:15:19]} 53... a5
{[%clk 1:12:47]} 54. bxa5 {[%clk 0:13:55]} 54... Ra7 {[%clk 1:13:07]} 55. a4
{[%clk 0:14:10]} 55... Rxa5 {[%clk 1:13:33]} 56. Ra3 {[%clk 0:14:17]} 56... Kd5
{[%clk 1:13:37]} 57. Kd3 {[%clk 0:14:33]} 57... Kc5 {[%clk 1:13:48]} 58. Ra1
{[%clk 0:13:59]} 58... Kd5 {[%clk 1:11:59]} 59. Ra2 {[%clk 0:12:57]} 59... Kc5
{[%clk 1:12:02]} 60. Rc2+ {[%clk 0:12:46]} 60... Kb4 {[%clk 1:10:58]} 61. Rc4+
{[%clk 0:11:22]} 61... Kb3 {[%clk 1:11:13]} 62. Rxd4 {[%clk 0:09:16]} 62... Rc5
{[%clk 1:11:33]} 63. Rd6 {[%clk 0:09:14]} 63... Kxa4 {[%clk 1:11:23]} 64. Rxf6
{[%clk 0:09:32]} 64... Kb5 {[%clk 1:11:40]} 65. h4 {[%clk 0:09:28]} 65... Rd5+
{[%clk 1:11:57]} 66. Ke3 {[%clk 0:09:49]} 66... Kc5 67. Rg6 {[%clk 0:09:56]}
67... Rd8 {[%clk 1:12:04]} 68. Rg5 {[%clk 0:10:22]} 68... Rf8 {[%clk 1:12:22]}
69. g4 {[%clk 0:10:46]} 69... Kd6 {[%clk 1:12:44]} 70. Rxf5 {[%clk 0:11:09]}
70... Ra8 {[%clk 1:13:08]} 71. g5 {[%clk 0:11:31]} 71... Ke6 {[%clk 1:13:32]}
72. Rf6+ {[%clk 0:11:53]} 72... Ke7 {[%clk 1:13:58]} 73. h5 {[%clk 0:12:03]}
73... Rh8 {[%clk 1:13:48]} 74. h6 {[%clk 0:12:20]} 74... Rh7 {[%clk 1:14:05]}
75. Rg6 {[%clk 0:12:40]} 75... Kf8 {[%clk 1:14:23]} 76. Rg7 {[%clk 0:13:02]}
76... Rh8 {[%clk 1:14:46]} 77. Ke4 {[%clk 0:13:29]} 77... Ke8 {[%clk 1:15:08]}
78. Ra7 {[%clk 0:13:47]} 78... Kf8 {[%clk 1:15:22]} 79. Ra8+ {[%clk 0:14:12]}
79... Kf7 {[%clk 1:15:48]} 80. Rxh8 {[%clk 0:14:28]} 1-0

[Variant "Standard"]
[Site "Europe Echecs"]

[Event "Championnat du monde jeunes U10"]
[Date "2024.11.17"]
[White "Kadyr, Aldiyar"]
[Black "Yrysov, Timur"]
[WhiteElo "1759"]
[BlackElo "1604"]
[Round "3.3"]
[Result "1-0"]
[TimeControl "5400+30"]

1. e4 {[%clk 1:30:43]} 1... c5 {[%clk 1:30:09]} 2. Nf3 {[%clk 1:30:28]} 2... d6
{[%clk 1:29:40]} 3. d4 {[%clk 1:30:00]} 3... cxd4 {[%clk 1:29:36]} 4. Nxd4
{[%clk 1:30:25]} 4... Nf6 {[%clk 1:29:26]} 5. Nc3 {[%clk 1:30:00]} 5... e5
{[%clk 1:29:17]} 6. Nb3 {[%clk 1:28:13]} 6... Be6 {[%clk 1:28:22]} 7. Be2 {[%clk
1:25:21]} 7... Be7 {[%clk 1:27:31]} 8. Bg5 {[%clk 1:24:50]} 8... Nc6 {[%clk
1:22:53]} 9. Bxf6 {[%clk 1:24:33]} 9... Bxf6 {[%clk 1:21:27]} 10. Qd3 {[%clk
1:23:12]} 10... a6 {[%clk 1:17:14]} 11. Rd1 {[%clk 1:20:01]} 11... Bxb3 {[%clk
1:04:23]} 12. axb3 {[%clk 1:20:11]} 12... Nb4 {[%clk 0:51:50]} 13. Qxd6 {[%clk
1:19:14]} 13... Nxc2+ {[%clk 0:47:37]} 14. Kf1 {[%clk 1:19:34]} 14... Nd4 {[%clk
0:45:05]} 15. Qb4 {[%clk 1:16:48]} 15... Be7 {[%clk 0:37:18]} 16. Qxb7 {[%clk
1:14:33]} 16... O-O {[%clk 0:31:33]} 17. Qd5 {[%clk 1:07:56]} 17... Qb8 {[%clk
0:25:19]} 18. Bc4 {[%clk 0:53:26]} 18... Kh8 {[%clk 0:24:40]} 19. Ne2 {[%clk
0:39:20]} 19... Nxe2 {[%clk 0:22:36]} 20. Kxe2 {[%clk 0:39:44]} 20... Ra7 {[%clk
0:16:55]} 21. Rd3 {[%clk 0:34:16]} 21... f5 {[%clk 0:08:46]} 22. Rhd1 {[%clk
0:29:38]} 22... fxe4 {[%clk 0:07:13]} 23. Qxe4 {[%clk 0:30:03]} 23... Bc5 {[%clk
0:07:22]} 24. Rf3 {[%clk 0:26:41]} 24... Bd4 {[%clk 0:06:53]} 25. Rd2 {[%clk
0:17:36]} 25... a5 {[%clk 0:05:27]} 26. Kf1 {[%clk 0:14:03]} 26... a4 {[%clk
0:04:30]} 27. Rh3 {[%clk 0:11:54]} 27... g6 {[%clk 0:03:02]} 28. Rxd4 {[%clk
0:03:56]} 28... exd4 {[%clk 0:03:03]} 29. Qxd4+ {[%clk 0:04:24]} 29... Rg7
{[%clk 0:03:21]} 30. Rxh7+ {[%clk 0:04:48]} 30... Kxh7 {[%clk 0:03:04]} 31. Qh4#
{[%clk 0:05:11]} 1-0

[Variant "Standard"]
[Site "Europe Echecs"]